Cogmind - Beta 16 @@@ ROGUE MODE // 2025.10.22 @ 14:42:15 Player: WetterLettuce Result: Destroyed by S-27 Virus with Autogun Performance ------------- Evolutions (3) 1500 Regions Visited (9) 1800 Robots Destroyed (22) 110 Value Destroyed (749) 749 Prototype IDs (35) 700 Alien Tech Used (0) 0 Bonus (440) 440 TOTAL SCORE: 5299 Bonus ------- Follower Combat Kills 140 Aligned with FarCom 300 Cogmind --------- Core Integrity 0/700 Matter 228/300 Energy 100/100 System Corruption 0% Temperature Cool (0) Movement Core (50) Location -7/Storage Parts ------- > --- POWER (1) -------- (None) > --- PROPULSION (3) --- (None) > --- UTILITY (6) ------ Advanced Visual Processing Unit Hacking Suite Authchip [Processor] > --- WEAPON (3) ------- Impact Mace > --- INVENTORY (5) ---- Light Deuterium Engine Heavy EM Shotgun Heavy EM Shotgun Cooled Pulse Rifle Advanced EMP Blaster Peak State ------------ > --- POWER ------------ Cooled Deuterium Engine > --- PROPULSION ------- Improved Aluminum Leg Improved Carbon-fiber Leg Improved Carbon-fiber Leg > --- UTILITY ---------- Improved Heat Sink Small Storage Unit Advanced Visual Processing Unit Improved Light Armor Plating Hacking Suite Authchip [Processor] > --- WEAPON ----------- Heavy EM Shotgun Cooled Pulse Rifle Cooled Pulse Rifle > --- INVENTORY -------- Light Deuterium Engine System Shield Heavy EM Shotgun Cooled Pulse Rifle Advanced EMP Blaster Precision Grenade Launcher Impact Mace [Rating: 48] Favorites ----------- Power Ion Engine Engine Ion Engine Propulsion Aluminum Leg Leg Aluminum Leg Wheel Wheel Utility Advanced Visual Processing Unit Device Heat Sink Storage Small Storage Unit Processor Advanced Visual Processing Unit Hackware Hacking Suite Protection Improved Utility Shielding Weapon Light Assault Rifle Energy Gun Cooled Pulse Rifle Ballistic Gun Light Assault Rifle Launcher Precision Grenade Launcher Special Weapon Mining Laser Impact Weapon Impact Mace Slashing Weapon Katana Build | -11 -10 -10 -9 -9 -9 -8 -8 -7 -7 ------- Run | Yrd Mat Min Mat Min Exi Min Mat Fac Sto Slots Evolved 6 | . . . 2 . . . 2 2 . Power . | . . . . . . . . . . Propulsion 1 | . . . 1 . . . . . . Utility 4 | . . . 1 . . . 1 2 . Weapon 1 | . . . . . . . 1 . . Parts Attached 51 | 6 3 1 5 1 1 . 14 8 12 Power 3 | 1 . . . . . . 2 . . Engine 3 | 1 . . . . . . 2 . . Core . | . . . . . . . . . . Reactor . | . . . . . . . . . . Propulsion 13 | 2 1 . . . . . 8 2 . Treads . | . . . . . . . . . . Leg 11 | 2 1 . . . . . 6 2 . Wheel 2 | . . . . . . . 2 . . Hover . | . . . . . . . . . . Flight . | . . . . . . . . . . Utility 15 | 1 1 . 2 . 1 . 1 4 5 Device 5 | . 1 . . . 1 . 1 . 2 Storage 2 | 1 . . . . . . . 1 . Processor 3 | . . . 2 . . . . 1 . Hackware 2 | . . . . . . . . 1 1 Protection 3 | . . . . . . . . 1 2 Artifact . | . . . . . . . . . . Weapon 20 | 2 1 1 3 1 . . 3 2 7 Energy Gun 6 | . . . . . . . . 2 4 Energy Cannon . | . . . . . . . . . . Ballistic Gun 4 | 2 . . 1 1 . . . . . Ballistic Cannon . | . . . . . . . . . . Launcher 4 | . . . 2 . . . 1 . 1 Special Weapon 3 | . 1 1 . . . . 1 . . Impact Weapon 1 | . . . . . . . . . 1 Slashing Weapon 2 | . . . . . . . 1 . 1 Piercing Weapon . | . . . . . . . . . . Special Melee Weapon . | . . . . . . . . . . Unidentified Prototypes 9 | . . . 1 . 1 . 2 2 3 Parts Lost 28 | . 1 . 4 1 . 1 12 . 9 Power 2 | . . . . . . . 1 . 1 Propulsion 12 | . . . 3 . . . 6 . 3 Utility 4 | . . . . . . . 2 . 2 Weapon 10 | . 1 . 1 1 . 1 3 . 3 Highest Loss Streak 8 | . 1 . 4 1 . 1 8 . 7 To Critical Strikes . | . . . . . . . . . . Average Backups 5 | . 3 7 7 5 5 5 4 3 6 Power 1 | . 1 2 1 1 1 1 . . 1 Propulsion . | . . 1 . . . . . . . Utility 1 | . . 1 2 2 1 1 . . 1 Weapon 2 | . 1 2 3 2 2 2 1 1 4 Tool/Special . | . . . . . . . . . . Unused Backups 6 | . . . 1 . . . . . 5 Power 2 | . . . 1 . . . . . 1 Propulsion 1 | . . . . . . . . . 1 Utility 2 | . . . . . . . . . 2 Weapon 1 | . . . . . . . . . 1 Tool/Special . | . . . . . . . . . . Average Slot Usage (%) 73 | . 95 100 89 43 53 54 52 76 86 Engine 6 | . 14 14 10 . . . 3 6 6 Leg 15 | . 28 28 27 . . . 13 21 19 Device 7 | . 9 14 10 . 9 11 4 . 4 Storage 5 | . 14 14 10 . . . . 5 6 Processor 13 | . . . 8 22 22 22 18 21 13 Hackware 1 | . . . . . . . . 1 10 Protection 1 | . . . . . . . . 5 6 Energy Gun 3 | . . . . . . . . 12 13 Ballistic Gun 14 | . 27 19 19 21 22 21 1 . . Special Weapon 1 | . . 8 1 . . . 1 . . Peak Build Rating 48 | 6 7 9 16 9 16 16 40 41 48 Average Rating 18 | 4 6 8 11 8 15 15 22 34 40 On Entrance 12 | . 6 7 9 9 9 16 15 8 41 Avg Prop Armor Cover (%) 27 | . . . . . . . 27 27 . Naked Turns . | . . . . . . . . . . Heaviest Build 34 | 12 13 13 18 2 10 10 21 26 34 Greatest Support 54 | 20 20 20 30 3 3 3 54 49 49 Greatest Overweight (x) 3 | . . . 1 . 3 3 2 . 1 Average Overweight (x) . | . . . . . 2 2 . . . Largest Inventory Capacity 8 | 8 8 8 8 5 5 5 5 8 8 Average Capacity 6 | 6 8 8 7 5 5 5 5 7 7 Most Carried 8 | 2 5 8 8 5 5 5 5 7 8 Average Carried 5 | . 3 7 7 5 4 5 4 3 7 Final Capacity 8 | 8 8 8 5 5 5 5 5 8 5 Final Carried 8 | 2 5 8 5 5 5 5 3 7 5 Class Distribution -------------------- 85% | Mutant 7% | Scavenger-Mutant 4% | Assassin Dominant Class ---------------- Mutant | -10/Materials Mutant | -10/Mines Mutant | -9/Materials Mutant | -9/Mines Mutant | -9/Exiles Mutant | -8/Mines Assassin | -8/Materials Mutant | -7/Factory Scavenger-Mutant | -7/Storage Resources | -11 -10 -10 -9 -9 -9 -8 -8 -7 -7 ----------- Run | Yrd Mat Min Mat Min Exi Min Mat Fac Sto Matter Collected 749 | 197 103 14 58 72 . . 130 30 145 Remotely . | . . . . . . . . . . Salvage Created 773 | . 103 . 103 74 . . 110 30 353 Parts 42 | . 3 . 7 7 . . 5 4 16 Haulers Intercepted . | . . . . . . . . . . Recyclers Shooed 1 | . . . 1 . . . . . . Parts Field Recycled . | . . . . . . . . . . Retrieved Matter . | . . . . . . . . . . Parts Self-Destructed . | . . . . . . . . . . Prevented . | . . . . . . . . . . Parts Restored . | . . . . . . . . . . Kills | -11 -10 -10 -9 -9 -9 -8 -8 -7 -7 ------- Run | Yrd Mat Min Mat Min Exi Min Mat Fac Sto Combat Hostiles Destroyed 20 | . 2 . 4 4 . . 2 . 8 Melee 1 | . . . . . . . 1 . . Guns 11 | . 2 . 2 4 . . . . 3 AOE 8 | . . . 2 . . . 1 . 5 Classes Destroyed 5 | . 1 . 2 . . . . 1 1 Recycler 1 | . . . 1 . . . . . . Operator 1 | . . . . . . . . 1 . Swarmer 11 | . . . 4 4 . . . . 3 Grunt 4 | . 2 . . . . . 2 . . Sentry 5 | . . . . . . . . . 5 Best Kill Streak 5 | . 2 . 5 4 . . 1 1 4 Combat Bots Only 4 | . 2 . 4 4 . . 1 . 4 Max Kills in Single Turn 3 | . 1 . 3 1 . . 1 1 2 Gunslinging . | . . . . . . . . . . Exploded 2 | . . . 2 . . . 1 . 2 Melee 1 | . . . . . . . 1 . . Uniques/NPCs Destroyed . | . . . . . . . . . . Combat | -11 -10 -10 -9 -9 -9 -8 -8 -7 -7 -------- Run | Yrd Mat Min Mat Min Exi Min Mat Fac Sto Hostile Shots Fired 609 | . 13 10 68 26 . 19 135 . 338 Missed 240 | . 4 6 24 7 . 3 45 . 151 Hits 369 | . 9 4 44 19 . 16 90 . 187 Melee 4 | . . . . . . 2 . . 2 Projectile 365 | . 9 4 44 19 . 14 90 . 185 Critical Strikes 8 | . 2 . 2 . . . 2 . 2 Damage Taken 4717 | . 182 50 543 154 . 274 1503 . 2011 Core 1376 | . 58 . 149 87 . 63 304 . 715 Absorbed by Shields . | . . . . . . . . . . Redirected to Shielding 7 | . . . . . . . . . 7 Core Remaining (%) 61 | 100 . 76 . . . 25 44 . . Volleys Fired 67 | . 12 . 13 16 . . 5 1 20 Largest 3 | . 2 . 2 2 . . 1 2 3 Hottest 180 | . 40 . 53 40 . . 36 75 180 Shots Fired 109 | . 17 . 25 20 . . 5 2 40 Gun 89 | . 9 . 22 20 . . . 2 36 Cannon . | . . . . . . . . . . Launcher 8 | . . . 3 . . . 1 . 4 Special 12 | . 8 . . . . . 4 . . Kinetic 51 | . 9 . 22 20 . . . . . Thermal 37 | . 8 . . . . . . 1 28 Explosive 7 | . . . 3 . . . . . 4 Electromagnetic 10 | . . . . . . . 1 1 8 Robot Hit Streak 19 | . 5 . 3 5 . . 3 5 19 Robot Miss Streak 3 | . 3 . 3 3 . . 1 . 2 Penetration Max . | . . . . . . . . . . Secondary Targets 1 | . . . 1 . . . . . . Max Gunslinging Chain 1 | . . . 1 . . . . . . Shots Hit Robots 80 | . 11 . 13 12 . . 6 2 36 Core Hits 49 | . 7 . 9 7 . . 4 2 20 Critical Kills 1 | . 1 . . . . . . . . Critical Parts Destroyed . | . . . . . . . . . . Critical Strikes 1 | . 1 . . . . . . . . Destroy 1 | . 1 . . . . . . . . Melee Attacks 14 | . . . . . . . 11 . 3 Impact 2 | . . . . . . . . . 2 Slashing 12 | . . . . . . . 11 . 1 Piercing . | . . . . . . . . . . Sneak Attacks . | . . . . . . . . . . Combat Hostiles . | . . . . . . . . . . Follow-up Attacks . | . . . . . . . . . . Damage Inflicted 1840 | . 68 . 317 115 . . 186 43 1111 Guns 1011 | . 55 . 104 115 . . . 43 694 Cannons . | . . . . . . . . . . Explosions 751 | . . . 213 . . . 121 . 417 Melee 65 | . . . . . . . 65 . . Ramming . | . . . . . . . . . . Kinetic 274 | . 55 . 104 115 . . . . . Thermal 617 | . 13 . . . . . . 18 586 Explosive 630 | . . . 213 . . . . . 417 Electromagnetic 254 | . . . . . . . 121 25 108 Impact . | . . . . . . . . . . Slashing 65 | . . . . . . . 65 . . Piercing . | . . . . . . . . . . Highest Corruption . | . . . . . . . . . . Average Corruption . | . . . . . . . . . . Corruption Purged . | . . . . . . . . . . Corruption Blocked . | . . . . . . . . . . Overload Shots 7 | . . . . . . . . . 7 Effects 2 | . . . . . . . . . 2 Energy Bleed 1 | . . . . . . . . . 1 Heat Surge 1 | . . . . . . . . . 1 Overflow Damage 38 | . . . 38 . . . . . . Projectiles . | . . . . . . . . . . Explosions 38 | . . . 38 . . . . . . Melee . | . . . . . . . . . . Knockbacks . | . . . . . . . . . . Impact . | . . . . . . . . . . Kinetic . | . . . . . . . . . . Secondary . | . . . . . . . . . . Self-Inflicted Damage 53 | . . . . . . . 53 . . Shots 1 | . . . . . . . 1 . . Rammed . | . . . . . . . . . . Targets Rammed . | . . . . . . . . . . Kicked . | . . . . . . . . . . Crushed . | . . . . . . . . . . Highest Temperature 257 | . 9 . 4 . . . 40 . 257 Average Temperature 77 | . 9 . 2 . . . 28 . 106 Received Heat Transfer 1554 | . 114 . 207 . . 126 765 . 342 Siege Activations . | . . . . . . . . . . Martial Activations . | . . . . . . . . . . Shielding Activations . | . . . . . . . . . . Robots Disrupted . | . . . . . . . . . . Combat Hostiles . | . . . . . . . . . . Robots Corrupted . | . . . . . . . . . . Combat Hostiles . | . . . . . . . . . . Parts Fried 1 | . . . . . . . . 1 . Impact Corruptions . | . . . . . . . . . . Robots Melted . | . . . . . . . . . . Combat Hostiles . | . . . . . . . . . . Parts Melted 4 | . . . . . . . . . 4 Heat Transferred 1164 | . 100 . . . . . . 37 1027 Parts Sabotaged . | . . . . . . . . . . Parts Stolen . | . . . . . . . . . . Parts Stripped . | . . . . . . . . . . Power Chain Reactions 1 | . . . . . . . 1 . . Alert | -11 -10 -10 -9 -9 -9 -8 -8 -7 -7 ------- Run | Yrd Mat Min Mat Min Exi Min Mat Fac Sto Maximum Alert Level 1 | . . . . . . . . . 1 Low Security (%) 96 | 100 100 100 100 100 . 100 100 100 78 Level 1 3 | . . . . . . . . . 21 Level 2 . | . . . . . . . . . . Level 3 . | . . . . . . . . . . Level 4 . | . . . . . . . . . . Level 5 . | . . . . . . . . . . High Security . | . . . . . . . . . . Max Security . | . . . . . . . . . . Peak Influence 335 | . 40 . 89 80 . . 187 25 335 Initial 25 | . . . . 7 . . . 25 . Average 22 | . 7 . 10 22 . . 69 2 65 Influence Increases 1194 | . 83 . 143 110 . . 371 5 482 Destroy 0b10 Robot/C 480 | . 40 . 100 80 . . 100 . 160 Destroy 0b10 Robot/NC 10 | . . . 5 . . . . 5 . Destroy Leader 120 | . 10 . 20 10 . . 20 . 60 Allied During Kill 8 | . . . 5 . . . 3 . . Successful Hack 58 | . 33 . . 5 . . 10 . 10 Disable Machine 15 | . . . . . . . . . 15 Anti-Garrison Action 150 | . . . . . . . . . 150 Destroy Structure 53 | . . . 13 . . . 13 . 27 Lose Combat Pursuer 300 | . . . . 15 . . 225 . 60 Influence Decreases 895 | . 83 . 124 69 60 . 314 62 183 Entered New Map 104 | . . . . 12 60 . . 32 . Time Decay 437 | . 83 . 60 47 . . 114 30 103 Lost Part 250 | . . . 40 10 . . 120 . 80 Lost Ally 104 | . . . 24 . . . 80 . . Squads Dispatched 12 | . 1 . 1 . . . 3 2 5 Investigation 1 | . . . . . . . . . 1 Extermination 2 | . . . . . . . . 1 1 Reinforcement 6 | . 1 . 1 . . . 3 1 . Assault 2 | . . . . . . . . . 2 Garrison 1 | . . . . . . . . . 1 Intercept . | . . . . . . . . . . Searches Triggered . | . . . . . . . . . . Construction Impeded . | . . . . . . . . . . Haulers Reinforced . | . . . . . . . . . . Active Scanning Responses . | . . . . . . . . . . Cargo Convoy Interrupts . | . . . . . . . . . . Stealth | -11 -10 -10 -9 -9 -9 -8 -8 -7 -7 --------- Run | Yrd Mat Min Mat Min Exi Min Mat Fac Sto Distress Signals 5 | . . . 3 . . . 2 . . Communications Jammed . | . . . . . . . . . . Distress Signals . | . . . . . . . . . . Times Spotted 94 | . 6 2 19 5 . 3 27 2 30 Peak Tracking Total 17 | . 3 2 10 4 . 3 7 1 17 Tactical Retreats 9 | . . . . 1 . . 6 . 2 Traps | -11 -10 -10 -9 -9 -9 -8 -8 -7 -7 ------- Run | Yrd Mat Min Mat Min Exi Min Mat Fac Sto Traps Triggered 4 | . 1 . . . . . . 1 2 Indirectly . | . . . . . . . . . . Trap Hack Attempts . | . . . . . . . . . . Triggered . | . . . . . . . . . . Disarmed . | . . . . . . . . . . Reprogrammed . | . . . . . . . . . . Reused . | . . . . . . . . . . Traps Extracted . | . . . . . . . . . . Installed . | . . . . . . . . . . Triggered . | . . . . . . . . . . Machines | -11 -10 -10 -9 -9 -9 -8 -8 -7 -7 ---------- Run | Yrd Mat Min Mat Min Exi Min Mat Fac Sto Machines Disabled 2 | . . . . . . . . . 2 Max in Single Turn 1 | . . . . . . . . . 1 Garrison Access 1 | . . . . . . . . . 1 Machines Repaired . | . . . . . . . . . . Machines Dismantled . | . . . . . . . . . . Machines Sabotaged . | . . . . . . . . . . Overloaded Fab Kills . | . . . . . . . . . . Hacking | -11 -10 -10 -9 -9 -9 -8 -8 -7 -7 --------- Run | Yrd Mat Min Mat Min Exi Min Mat Fac Sto Machines Accessed 19 | . 6 1 1 1 1 . 2 4 3 Terminals 15 | . 5 . 1 1 . . 2 3 3 Fabricators 1 | . . . . . . . . 1 . Repair Stations . | . . . . . . . . . . Recycling Units 1 | . 1 . . . . . . . . Scanalyzers . | . . . . . . . . . . Garrison Access . | . . . . . . . . . . Total Hacks 46 | . 14 1 4 2 1 . 9 6 9 Successful 21 | . 9 1 2 1 1 . 3 1 3 Failed 25 | . 5 . 2 1 . . 6 5 6 Catastrophic 6 | . 2 . . . . . . 3 1 Database Lockouts . | . . . . . . . . . . Manual 36 | . 12 . 4 2 1 . 6 5 6 Terminals 40 | . 11 . 4 2 . . 9 5 9 Fabricators 1 | . . . . . . . . 1 . Repair Stations . | . . . . . . . . . . Recycling Units 3 | . 3 . . . . . . . . Scanalyzers . | . . . . . . . . . . Garrison Access . | . . . . . . . . . . Terminal Hacks 8 | . 2 1 1 . 1 . 2 . 1 Prototype ID Bank 2 | . 1 . . . . . 1 . . Open Door 2 | . . 1 . . . . . . 1 Terminal Index 2 | . 1 . 1 . . . . . . Zone Layout 1 | . . . . . . . 1 . . Proto ID Catalog 1 | . . . . . 1 . . . . Fabricator Hacks . | . . . . . . . . . . Repair Station Hacks . | . . . . . . . . . . Recycling Unit Hacks . | . . . . . . . . . . Scanalyzer . | . . . . . . . . . . Garrison Access Hacks . | . . . . . . . . . . Unauthorized Hacks 13 | . 7 . 1 1 . . 1 1 2 Terminals 11 | . 5 . 1 1 . . 1 1 2 Botnet 11 | . 5 . 1 1 . . 1 1 2 Fabricators . | . . . . . . . . . . Repair Stations . | . . . . . . . . . . Recycling Units 2 | . 2 . . . . . . . . Reject 1 | . 1 . . . . . . . . Recyclers 1 | . 1 . . . . . . . . Scanalyzers . | . . . . . . . . . . Garrison Access . | . . . . . . . . . . Data Cores Recovered 1 | . . . . . . . . 1 . Used . | . . . . . . . . . . Hacking Detections 16 | . 5 . 1 1 . . 2 4 3 Full Trace Events . | . . . . . . . . . . Feedback Events . | . . . . . . . . . . Feedback Blocked . | . . . . . . . . . . Robot Schematics Acquired . | . . . . . . . . . . Robots Built . | . . . . . . . . . . Authchips . | . . . . . . . . . . Time . | . . . . . . . . . . Total Robot Build Rating . | . . . . . . . . . . Part Schematics Acquired . | . . . . . . . . . . Parts Built . | . . . . . . . . . . Authchips . | . . . . . . . . . . Time . | . . . . . . . . . . Total Part Build Rating . | . . . . . . . . . . Part Studies Acquired . | . . . . . . . . . . Parts Repaired . | . . . . . . . . . . Time . | . . . . . . . . . . Parts Recycled . | . . . . . . . . . . Recycled Matter . | . . . . . . . . . . Retrieved Matter . | . . . . . . . . . . Retrieved Components . | . . . . . . . . . . Parts Scanalyzed . | . . . . . . . . . . Part Schematics Acquired . | . . . . . . . . . . Parts Damaged . | . . . . . . . . . . Bothacking | -11 -10 -10 -9 -9 -9 -8 -8 -7 -7 ------------ Run | Yrd Mat Min Mat Min Exi Min Mat Fac Sto Used RIF Installer . | . . . . . . . . . . Robots Hacked . | . . . . . . . . . . Non-combat . | . . . . . . . . . . Combat . | . . . . . . . . . . Robot Hacks Applied . | . . . . . . . . . . Relay Couplers Released 2 | . . . . . . . . . 2 Machine Destruction 2 | . . . . . . . . . 2 Fabnet Peak Effective % . | . . . . . . . . . . Robots Rewired . | . . . . . . . . . . Allies Hacked . | . . . . . . . . . . Hacks Repelled . | . . . . . . . . . . Allies | -11 -10 -10 -9 -9 -9 -8 -8 -7 -7 -------- Run | Yrd Mat Min Mat Min Exi Min Mat Fac Sto Total Allies 5 | . . 2 . . . . 3 . . Largest Group 2 | . . 2 2 . . . 1 . . Highest-Rated Group 42 | . . 42 42 . . . 40 . . Highest-Rated Ally 40 | . . 31 31 . . . 40 . . Total Orders . | . . . . . . . . . . Ally Attacks 28 | . . 9 11 . . . 8 . . Total Damage 411 | . . 81 166 . . . 164 . . Kills 7 | . . 3 1 . . . 3 . . Allies Corrupted . | . . . . . . . . . . Allies Melted . | . . . . . . . . . . Field Lobotomies 3 | . . . . . . . 3 . . Intel | -11 -10 -10 -9 -9 -9 -8 -8 -7 -7 ------- Run | Yrd Mat Min Mat Min Exi Min Mat Fac Sto Active Infowar (turns) 2304 | . . . 266 226 557 213 283 340 419 Optics 2304 | . . . 266 226 557 213 283 340 419 Sensors 113 | . . . . . . . 113 . . Robot Analysis Total . | . . . . . . . . . . Derelict Logs Recovered 1 | . . . . 1 . . . . . Drone Launches 1 | . . . . . . . 1 . . Drone Recoveries . | . . . . . . . . . . Exploration | -11 -10 -10 -9 -9 -9 -8 -8 -7 -7 ------------- Run | Yrd Mat Min Mat Min Exi Min Mat Fac Sto Turns Passed 3131 | 56 313 364 360 226 557 213 283 340 419 Spaces Moved 2295 | 41 226 159 277 320 367 109 241 284 271 Core 1037 | 5 . . 37 320 367 109 124 32 43 Treads . | . . . . . . . . . . Legs 1199 | 36 226 159 240 . . . 58 252 228 Wheels 59 | . . . . . . . 59 . . Hover . | . . . . . . . . . . Flight . | . . . . . . . . . . Fastest Speed 50 | 50 120 120 50 50 50 150 50 50 50 Average Speed 112 | 111 120 120 110 50 151 196 89 112 109 Slowest Speed 200 | 120 120 120 190 50 200 200 150 120 190 Overloaded Moves . | . . . . . . . . . . Propulsion Burnouts . | . . . . . . . . . . Robots Hopped . | . . . . . . . . . . Potential Cave-ins . | . . . . . . . . . . Cave-ins Triggered . | . . . . . . . . . . Exploration Rate (%) 44 | 5 45 51 39 61 92 38 37 12 61 Regions Visited 9 Branch Regions 5 Pre-discovered Areas 1 | . . . . 1 . . . . . Known Exits Taken . | . . . . . . . . . . Unknown Exits Taken 9 | 1 1 1 1 1 1 1 1 1 . Scrap Searched 2 | . . . . 2 . . . . . Spaces Dug 8 | . . . . . . . 6 . 2 Terrain Destroyed 58 | . . . 14 . . . 15 . 29 Melee 8 | . . . . . . . 6 . 2 Projectile 1 | . . . . . . . . . 1 AOE 49 | . . . 14 . . . 9 . 26 Terrain Rammed . | . . . . . . . . . . Walls Destroyed . | . . . . . . . . . . Machines Disabled . | . . . . . . . . . . Actions | -11 -10 -10 -9 -9 -9 -8 -8 -7 -7 --------- Run | Yrd Mat Min Mat Min Exi Min Mat Fac Sto Total 2712 | 48 249 331 308 368 368 108 281 299 352 Wait 239 | . 5 169 3 32 . . 2 . 28 Move 2286 | 40 225 158 276 319 366 108 240 283 271 Hop . | . . . . . . . . . . Pick Up 24 | 2 3 3 2 . 1 . 3 5 5 Fast Attach 29 | 6 1 . 2 1 . . 7 8 4 Attach 17 | . 1 . 2 . 1 . 8 2 3 Detach 3 | . . . . . . . 2 . 1 Swap 15 | . 2 1 4 . . . 1 . 7 Drop 18 | . . . 6 . . . 2 . 10 Fire 67 | . 12 . 13 16 . . 5 1 20 Melee 14 | . . . . . . . 11 . 3 Ram . | . . . . . . . . . . Kick . | . . . . . . . . . . Crush . | . . . . . . . . . . Escape Stasis . | . . . . . . . . . . Rewire . | . . . . . . . . . . Trap . | . . . . . . . . . . Miscellaneous . | . . . . . . . . . . Route ------- -11/Scrapyard -10/Materials (discovered 2 exits: *Mat / *Min) -10/Mines -9/Materials (discovered 2 exits: *Mat / *Min) -9/Mines -9/Exiles (discovered 2 exits: [*Min x2]) -8/Mines -8/Materials -7/Factory -7/Storage History --------- Turn | Location | Event 14 | -11/Scrapyard | Discovered new exit (range 14) 57 | -11/Scrapyard | Entered Materials 220 | -10/Materials | Discovered new exit (range 13) 303 | -10/Materials | Build established: Mutant 350 | -10/Materials | Discovered new exit (range 13) 370 | -10/Materials | Entered Mines 377 | -10/Mines | Received a Rocket Launcher from a helpful Derelict 409 | -10/Mines | Found the Drone Emporium 417 | -10/Mines | Found Prototype Device 450 | -10/Mines | Assembled infested the area 483 | -10/Mines | Found a damaged Exp. Sensor Array with a note attached 485 | -10/Mines | Found Prototype Device 564 | -10/Mines | Discovered new exit (range 13) 734 | -10/Mines | Entered Materials 734 | -9/Materials | Accompanied by 2 allies 734 | -9/Materials | Evolved 2 slots: Propulsion x1, Utility x1 739 | -9/Materials | Led the pair of lost Derelicts to an unsafe place 955 | -9/Materials | Discovered new exit (range 10) 1085 | -9/Materials | Discovered new exit (range 18) 1094 | -9/Materials | Entered Mines 1102 | -9/Mines | Lost 4 parts (3n1w) 1220 | -9/Mines | Learned location of Zion (-6) 1253 | -9/Mines | Core integrity fell below 50% 1318 | -9/Mines | Deemed a non-threat by the Exiles lab entrance 1318 | -9/Mines | Discovered new exit (range 5) 1320 | -9/Mines | Entered Exiles 1327 | -9/Exiles | Discovered new exit (range 18) 1333 | -9/Exiles | Met 8R-AWN 1342 | -9/Exiles | Met EX-HEX 1355 | -9/Exiles | Met EX-BIN 1365 | -9/Exiles | Aligned with FarCom system 1365 | -9/Exiles | Given EX-Vault access code 1377 | -9/Exiles | Opened EX-Vault 1380 | -9/Exiles | Identified Splice Drone Bay 1381 | -9/Exiles | Found Field Lobotomy Kit 1419 | -9/Exiles | Warned to stay clear of 0b10 Research branches 1467 | -9/Exiles | Met EX-DEC 1542 | -9/Exiles | Visited The Gauntlet 1861 | -9/Exiles | Discovered new exit (range 10) 1877 | -9/Exiles | Left Exiles lab with Field Lobotomy Kit 1877 | -9/Exiles | Entered Mines 2071 | -8/Mines | Discovered new exit (range 12) 2090 | -8/Mines | Entered Materials 2090 | -8/Materials | Evolved 2 slots: Utility x1, Weapon x1 2172 | -8/Materials | Identified Exp. Sensor Array 2303 | -8/Materials | Assimilated Y-45 Defender with FLK Orb 2328 | -8/Materials | Discovered new exit (range 19) 2339 | -8/Materials | Assimilated X-62 Marksman with FLK Orb 2346 | -8/Materials | Assimilated X-62 Marksman with FLK Orb 2366 | -8/Materials | Core integrity fell below 50% 2373 | -8/Materials | Entered Factory 2373 | -7/Factory | Evolved 2 slots: Utility x2 2395 | -7/Factory | Lost 8 parts (5n1u2w) 2690 | -7/Factory | Discovered new exit (range 19) 2713 | -7/Factory | Entered Storage 3029 | -7/Storage | Garrison activated, responded to threat 3106 | -7/Storage | Core integrity fell below 50% 3123 | -7/Storage | Core integrity fell below 20% 3132 | -7/Storage | Destroyed by S-27 Virus with Autogun Last Messages --------------- ALERT: Potential suspicious activity detected, Programmers report to Storage Zone 1Y. Imp. Carbon-fiber Leg destroyed. Prc. Grenade Launcher destroyed. Cld. Deuterium Engine destroyed. Identified Impact Mace. Imp. Carbon-fiber Leg destroyed. Dropped Cld. Pulse Rifle. Dropped Sml. Storage Unit. Imp. Heat Sink destroyed. Connecting with Terminal... >>Trojan(Botnet) Trojan loaded successfully. Testing... Terminal linked with 1 system. Awaiting botnet instructions. Connecting with Door Terminal... >>Open(Door) Sealed Heavy Doors opened. M-28 Smith repairs S-27 Virus. Map ----- +----------------------------------------------------+ | ###?? #??????????????????????????? | | T"#?? #??????????????????????????? | | "### ###########+#??????????????? | | ??????????????? | | ??????????????? | | % ??????????????? | | ## ###########???????????????????? | | ?# #?????????????????????????????? | | ?#! #?????????????????????????????? | | ?#[! #######???????????????????????? | | ?# + ??????????????????????? | | ?# ##### """???????????????????? | | ?# ## ?????????????????? | | ?# / """???????????????????? | | ?# ## ## """???????????Y???????? | | ##+##+### ##????"???????????????????? | | # #?????????????????????????? | | """ #b######+###+##?????????????? | | """ / Y +?????????????? | | """ # Y #??????????????? | | ##/#####+## #??????????????? | | ########## g g ## #??????????????? | | ?????????# ## ##?????????????? | | ?????????# # ##+#####??????? | | ?????????# l "" +??????? | | ?????????# ; T ss @ #??????? | | ?????????# # ss ##### #??????? | | ?????????#######"#+####??????#??????? | | ???????????????## #####????????????? | | ????????????????# !!!#????????????? | | ????????????????# !!!#????????????? | | ????????????????##T#####????????????? | | ?????????????????###????????????????? | | ????????????????????????????????????? | | ????????????????????????????????????? | | ????????????????????????????????????? | | ????????????????????????????????????? | | ????????????????????????????????????? | | | | | | | | | | | | | | | | | | | | | | | | | +----------------------------------------------------+ Best States ------------- Heat Dissipation 48 Energy Generation 18 Energy Capacity 310 Matter Stores 300 Matter Capacity 300 Sight Range 20 Robot Scan Range 20 Terrain Scan Density 10 Armor Coverage 150 Utility Shielding 66 Evasion (%) 55 Salvage Targeting 2 Offensive Hacking 10 Authchip Count 1 Item Schematics ----------------- None Robot Schematics ------------------ None Fabricated ------------ Nothing Repaired ---------- Nothing Studied --------- None Alien Tech Used ----------------- None Achievements -------------- Resistances Are Futile Sixth Sense Challenges ------------ None Game ------ Seed RecoilBarrageStripper Manual? 0 Play Time 00:34:00 Cumulative 86.7 hours Start 2025.10.21 @ 22:05:09 End 2025.10.22 @ 14:42:15 Sessions 3 Manual Loads 0 Difficulty Rogue Special Mode None Game No. 96 Rogue 96 Adventurer 0 Explorer 0 Win Type - Total 1 Types 1/0/0/0/0/0/0/0/0/0 Lore% 66 Gallery% 52 Achievement% 28 Wizard Run 0 Options --------- Layout 1 ASCII 0 Keyboard 0 Movement Mouse Keybinds 0 Fullscreen 2 Font 24/Smallcaps Map View 50x35 Zoom Use 0% Tactical HUD 0 Map Filters NONE Filters NONE Steam 1 RUN: 3e9309c6-69e1-4a6b-a03e-70e4f721368f